bitfinex/quotes_BTCUSD_20250910
["timestamp","ask_amount","ask_price","bid_price","bid_amount"]
[1757489300063,0.15194197,112260.0,112250.0,0.66078727]
[1757489304160,0.15721197,112260.0,112250.0,0.63290727]
[1757489304365,0.15721197,112260.0,112250.0,0.3446097]
[1757489304626,0.15721197,112260.0,112250.0,0.60778069]
[1757489304829,0.15721197,112260.0,112250.0,0.60994069]
[1757489305214,0.15397197,112260.0,112250.0,0.60994069]
[1757489305638,0.15194197,112260.0,112250.0,0.63573069]
[1757489308878,0.15397197,112260.0,112250.0,0.63573069]
[1757489309268,0.15397197,112260.0,112250.0,0.5211197]
[1757489309466,0.15397197,112260.0,112250.0,0.63573069]
[1757489310201,0.15194197,112260.0,112250.0,0.63573069]
[1757489310525,0.15194197,112260.0,112250.0,0.5211197]
[1757489310727,0.15194197,112260.0,112250.0,0.63573069]
[1757489311291,0.15194197,112260.0,112250.0,0.66085727]
[1757489312323,0.15194197,112260.0,112250.0,0.71786601]
[1757489313205,0.15194197,112260.0,112250.0,0.74463811]
[1757489313407,0.15194197,112260.0,112250.0,0.80862132]
[1757489313939,0.15194197,112260.0,112250.0,0.78184922]
[1757489315220,0.15194197,112260.0,112250.0,0.61022949]
[1757489315381,0.15194197,112260.0,112250.0,0.78184922]
[1757489315976,0.15194197,112260.0,112250.0,0.95346895]
[1757489317022,0.15194197,112260.0,112250.0,1.35346895]
[1757489317377,0.15194197,112260.0,112250.0,1.28948574]
[1757489317578,0.15194197,112260.0,112250.0,1.62948574]
[1757489318018,0.15194197,112260.0,112250.0,1.70979542]
[1757489318221,0.13744673,112260.0,112250.0,1.75979542]
[1757489318645,0.13744673,112260.0,112250.0,1.67948574]
[1757489320137,0.13744673,112260.0,112250.0,1.33624628]
[1757489320343,0.13744673,112260.0,112250.0,1.75968685]
[1757489320344,0.03377029,112260.0,112250.0,1.75968685]
[1757489320958,0.01008,112280.0,112270.0,0.20326855]
[1757489321168,0.01021829,112280.0,112270.0,1.126984]
[1757489321372,0.01021829,112280.0,112270.0,1.154794]
[1757489321569,0.01021829,112280.0,112270.0,1.554794]
[1757489321784,0.14556623,112290.0,112280.0,0.56812611]
[1757489321994,0.14556623,112290.0,112280.0,1.56374787]
[1757489322213,1e-08,112290.0,112280.0,1.71437787]
[1757489322432,1e-08,112290.0,112280.0,2.11437787]
[1757489322644,1e-08,112290.0,112280.0,2.62923706]
[1757489322860,0.15237751,112320.0,112310.0,0.54320511]
[1757489323078,0.15251575,112320.0,112310.0,1.14472083]
[1757489323319,0.15251575,112320.0,112310.0,1.27349056]
[1757489323529,0.15251575,112320.0,112310.0,1.05199083]
[1757489323967,0.15251575,112320.0,112310.0,1.23248752]
[1757489324398,0.15251575,112320.0,112310.0,1.63448752]
[1757489324602,0.15459575,112320.0,112310.0,1.28800806]
[1757489324868,0.15459575,112320.0,112310.0,1.45962779]
[1757489325072,0.15251575,112320.0,112310.0,1.46282779]
[1757489325806,0.15251575,112320.0,112310.0,1.46482779]
[1757489326014,0.15459575,112320.0,112310.0,1.46170779]
[1757489326242,0.15459575,112320.0,112310.0,1.46166779]
[1757489326444,0.15459575,112320.0,112310.0,1.52690109]
[1757489326648,0.15757575,112320.0,112310.0,1.32820451]
[1757489326854,0.15757575,112320.0,112310.0,1.29966782]
[1757489327059,0.15757575,112320.0,112310.0,1.06928755]
[1757489327282,0.15757575,112320.0,112310.0,0.66205425]
[1757489327484,0.15757575,112320.0,112310.0,0.66505425]
[1757489328026,0.15757575,112320.0,112310.0,0.66205425]
[1757489328169,0.15757575,112320.0,112310.0,0.66412425]
[1757489328380,0.15757575,112320.0,112310.0,0.66612425]
[1757489328604,0.15459575,112320.0,112310.0,0.66612425]
[1757489328797,0.15251575,112320.0,112310.0,0.70083787]
[1757489329005,0.15459575,112320.0,112310.0,0.69783787]
[1757489329440,0.15459575,112320.0,112310.0,0.69983787]
[1757489329678,0.15757575,112320.0,112310.0,0.67409787]
[1757489329893,0.15757575,112320.0,112310.0,0.67401787]
[1757489330113,0.15251575,112320.0,112310.0,0.57600445]
[1757489330335,0.15251575,112320.0,112310.0,0.72488445]
[1757489330546,0.15251575,112320.0,112310.0,0.57600445]
[1757489330756,0.15251575,112320.0,112310.0,0.72488445]
[1757489330963,0.15251575,112320.0,112310.0,0.55326472]
[1757489331181,0.15251575,112320.0,112310.0,0.72488445]
[1757489332236,0.15251575,112320.0,112310.0,0.55326472]
[1757489332439,0.15251575,112320.0,112310.0,0.72488445]
[1757489334348,0.15459575,112320.0,112310.0,0.72488445]
[1757489334560,0.15757575,112320.0,112310.0,0.54799472]
[1757489334757,0.15757575,112320.0,112310.0,0.51409425]
[1757489334958,0.15459575,112320.0,112310.0,0.66512425]
[1757489335334,0.15757575,112320.0,112310.0,0.49143452]
[1757489335534,0.15757575,112320.0,112310.0,0.67199362]
[1757489335864,0.15459575,112320.0,112310.0,0.66512425]
[1757489336439,0.15251575,112320.0,112310.0,0.69086425]
[1757489337508,0.15251575,112320.0,112310.0,0.69995192]
[1757489337713,0.15251575,112320.0,112310.0,0.87157165]
[1757489337922,0.15251575,112320.0,112310.0,0.69995192]
[1757489338461,0.15459575,112320.0,112310.0,0.69995192]
[1757489338699,0.15459575,112320.0,112310.0,0.53870425]
[1757489338862,0.15757575,112320.0,112310.0,0.66317425]
[1757489339469,0.15757575,112320.0,112310.0,0.51409425]
[1757489339671,0.15757575,112320.0,112310.0,0.66313425]
[1757489340161,0.15757575,112320.0,112310.0,0.66520425]
[1757489340360,0.15459575,112320.0,112310.0,0.66520425]
[1757489340779,0.15251575,112320.0,112310.0,0.69094425]
[1757489342428,0.15251575,112320.0,112310.0,0.71607083]
[1757489342634,0.15251575,112320.0,112310.0,0.88769056]
[1757489343190,0.15251575,112320.0,112310.0,1.49719056]
[1757489343422,0.15251575,112320.0,112310.0,1.54719056]
[1757489343605,0.15251575,112320.0,112310.0,1.94719056]
[1757489343811,0.15251575,112320.0,112310.0,1.94519056]
[1757489344422,0.15251575,112320.0,112310.0,1.94819056]
[1757489344558,0.15251575,112320.0,112310.0,1.6049511]
[1757489344961,0.15251575,112320.0,112310.0,1.94819056]
[1757489345968,0.15251575,112320.0,112310.0,1.94319056]
[1757489346436,0.15251575,112320.0,112310.0,1.6029511]
[1757489346640,0.15251575,112320.0,112310.0,1.95019056]
[1757489346865,0.15251575,112320.0,112310.0,1.94719056]
[1757489347084,0.15251575,112320.0,112310.0,1.79815056]
[1757489347295,0.15251575,112320.0,112310.0,1.94731056]
[1757489347435,0.15251575,112320.0,112310.0,1.95231056]
[1757489348267,0.15251575,112320.0,112310.0,1.95235056]
[1757489349134,0.15251575,112320.0,112310.0,1.6091111]
[1757489349366,0.15251575,112320.0,112310.0,1.95235056]
[1757489350432,0.15251575,112320.0,112310.0,1.67885056]
[1757489350671,0.15251575,112320.0,112310.0,1.67385056]
[1757489350919,0.15251575,112320.0,112310.0,1.67685056]
[1757489351102,0.15251575,112320.0,112310.0,1.67985056]
[1757489351318,0.01,112330.0,112320.0,0.56806267]
[1757489351661,0.01,112330.0,112320.0,1.18009812]
[1757489351898,0.01,112330.0,112320.0,1.18223812]
[1757489352130,0.01,112330.0,112320.0,1.58223812]
[1757489353961,0.01,112330.0,112320.0,1.58219812]
[1757489354414,0.01,112330.0,112320.0,1.58519812]
[1757489355684,0.01,112330.0,112320.0,1.58819812]
[1757489355923,0.01,112330.0,112320.0,1.58815812]
[1757489356271,0.01,112330.0,112320.0,1.43903812]
[1757489356475,0.01,112330.0,112320.0,1.58815812]
[1757489356854,0.01,112330.0,112320.0,1.43903812]
[1757489357059,0.01,112330.0,112320.0,1.58815812]
[1757489358234,0.01,112330.0,112320.0,2.29976362]
[1757489358440,1e-08,112330.0,112320.0,1.29772414]
[1757489358672,1e-08,112330.0,112320.0,1.78490443]
[1757489358882,1e-08,112330.0,112320.0,1.99882443]
[1757489359314,1e-08,112330.0,112320.0,2.08960929]
[1757489359528,1e-08,112330.0,112320.0,2.60146848]
[1757489359716,1e-08,112330.0,112320.0,2.53443352]
[1757489359940,1e-08,112330.0,112320.0,2.53943352]
[1757489360158,1e-08,112330.0,112320.0,2.54343352]
[1757489360550,1e-08,112330.0,112320.0,2.59343352]
[1757489360753,0.15677714,112350.0,112340.0,0.76801674]
[1757489360906,0.15677714,112350.0,112340.0,1.07745273]
[1757489361106,1e-08,112350.0,112340.0,1.10727273]
[1757489361314,1e-08,112350.0,112340.0,1.50727273]
[1757489361531,1e-08,112350.0,112340.0,1.53401672]
[1757489361961,1e-08,112350.0,112340.0,2.52018836]
[1757489362153,1e-08,112350.0,112340.0,2.37110836]
[1757489362387,1e-08,112350.0,112340.0,1.85624917]
[1757489362593,1e-08,112350.0,112340.0,2.01064917]
[1757489363070,1e-08,112350.0,112340.0,1.86124917]
[1757489363286,1e-08,112350.0,112340.0,2.01064917]
[1757489363866,1e-08,112350.0,112340.0,1.86124917]
[1757489364071,1e-08,112350.0,112340.0,2.01060917]
[1757489364285,1e-08,112350.0,112340.0,2.01660917]
[1757489364464,1e-08,112350.0,112340.0,2.01664917]
[1757489364713,1e-08,112350.0,112340.0,2.02164917]
[1757489365163,1e-08,112350.0,112340.0,1.87224917]
[1757489365363,1e-08,112350.0,112340.0,2.02164917]
[1757489366144,1e-08,112350.0,112340.0,1.87224917]
[1757489366346,1e-08,112350.0,112340.0,1.35738998]
[1757489366516,1e-08,112350.0,112340.0,1.87224917]
[1757489366719,1e-08,112350.0,112340.0,2.02204917]
[1757489367076,1e-08,112350.0,112340.0,2.0520455]
[1757489367203,1e-08,112350.0,112340.0,1.9580655]
[1757489369928,1e-08,112350.0,112340.0,1.8082655]
[1757489370131,1e-08,112350.0,112340.0,1.78644577]
[1757489370354,1e-08,112350.0,112340.0,1.9580655]
[1757489370848,1e-08,112350.0,112340.0,2.02204917]
[1757489371065,1e-08,112350.0,112340.0,2.01704917]
[1757489371267,1e-08,112350.0,112340.0,2.01004917]
[1757489371747,1e-08,112350.0,112340.0,2.00604917]
[1757489371924,1e-08,112350.0,112340.0,2.01104917]
[1757489372450,1e-08,112350.0,112340.0,2.00600917]
[1757489373219,1e-08,112350.0,112340.0,2.01100917]
[1757489373442,1e-08,112350.0,112340.0,1.9470255]
[1757489374218,1e-08,112350.0,112340.0,1.92628151]
[1757489374358,1e-08,112350.0,112340.0,1.75396829]
[1757489375472,1e-08,112370.0,112360.0,0.25312586]
[1757489375671,0.01279,112390.0,112380.0,0.5179676]
[1757489375903,0.01325097,112390.0,112380.0,1.08630757]
[1757489376108,0.01325097,112390.0,112380.0,1.48630757]
[1757489376319,0.17726416,112400.0,112380.0,1.67561614]
[1757489376687,0.17740236,112400.0,112390.0,1.0574447]
[1757489376897,0.18787595,112430.0,112390.0,1.09095832]
[1757489377097,0.18787595,112430.0,112420.0,0.38400226]
[1757489377306,0.18462595,112430.0,112420.0,1.14397083]
[1757489377519,0.18462595,112430.0,112420.0,1.17165083]
[1757489377689,0.18462595,112430.0,112420.0,1.23497816]
[1757489377690,0.18677595,112430.0,112420.0,1.23497816]
[1757489377894,0.18677595,112430.0,112420.0,1.21027816]
[1757489378245,0.18462595,112430.0,112420.0,1.58684865]
[1757489378461,0.18462595,112430.0,112420.0,1.58984865]
[1757489378896,0.18462595,112430.0,112420.0,1.58996865]
[1757489379103,0.18677595,112430.0,112420.0,1.58698865]
[1757489379764,0.19002595,112430.0,112420.0,0.9578476]
[1757489379973,0.19002595,112430.0,112420.0,0.98297418]
[1757489380180,0.16002595,112430.0,112420.0,0.98297418]
[1757489380381,0.16002595,112430.0,112420.0,0.58297418]
[1757489380617,0.15677595,112430.0,112420.0,0.69715617]
[1757489380809,0.16002595,112430.0,112420.0,0.81347816]
[1757489380997,0.15677595,112430.0,112420.0,0.81347816]
[1757489381200,0.15677595,112430.0,112420.0,0.81133816]
[1757489381201,0.16001595,112430.0,112420.0,0.81133816]
[1757489381625,0.16001595,112430.0,112420.0,0.58297418]
[1757489382036,0.16001595,112430.0,112420.0,0.69715617]
[1757489382865,0.15677595,112430.0,112420.0,0.58498418]
[1757489383068,0.16001595,112430.0,112420.0,0.69715617]
[1757489383702,0.15677595,112430.0,112420.0,0.81334816]
[1757489383907,0.15462595,112430.0,112420.0,1.17808816]
[1757489384105,0.15462595,112430.0,112420.0,1.18131816]
[1757489384311,0.15462595,112430.0,112420.0,1.58131816]
[1757489384517,0.10128065,112430.0,112420.0,1.58131816]
[1757489385718,0.10128065,112430.0,112420.0,1.74550015]
[1757489386153,0.10128065,112430.0,112420.0,1.58131816]
[1757489386348,0.10128065,112430.0,112420.0,1.35295418]
[1757489386536,0.10128065,112430.0,112420.0,1.55830806]
[1757489386754,0.10128065,112430.0,112420.0,1.55507806]
[1757489386947,0.10128065,112430.0,112420.0,1.34972418]
[1757489386948,0.10334065,112430.0,112420.0,1.34972418]
[1757489387159,0.10334065,112430.0,112420.0,1.55207806]
[1757489387360,0.10128065,112430.0,112420.0,1.55207806]
[1757489387541,0.10658065,112430.0,112420.0,1.16969418]
[1757489387744,0.10658065,112430.0,112420.0,1.54850511]
[1757489387950,0.10334065,112430.0,112420.0,1.52737806]
[1757489388962,0.10128065,112430.0,112420.0,1.55534806]
[1757489390031,0.10334065,112430.0,112420.0,1.55211806]
[1757489390518,0.10658065,112430.0,112420.0,1.52532806]
[1757489390661,0.10658065,112430.0,112420.0,1.31997418]
[1757489391310,0.10658065,112430.0,112420.0,1.45688806]
[1757489391518,0.10658065,112430.0,112420.0,1.05688806]
[1757489392152,0.10658065,112430.0,112420.0,0.85153418]
[1757489392355,0.10658065,112430.0,112420.0,1.05688806]
[1757489392733,0.10334065,112430.0,112420.0,1.05889806]
[1757489393159,0.10334065,112430.0,112420.0,1.05688806]
[1757489393160,0.10658065,112430.0,112420.0,1.05688806]
[1757489394143,0.10658065,112430.0,112420.0,0.85153418]
[1757489394356,0.10658065,112430.0,112420.0,1.05688806]
[1757489395191,0.10658065,112430.0,112420.0,0.09191599]
[1757489395394,0.48982299,112430.0,112420.0,0.09191599]
[1757489395595,0.17790715,112420.0,112400.0,0.1868069]
[1757489395810,0.68354103,112420.0,112410.0,0.09191599]
[1757489396030,0.68560103,112420.0,112410.0,0.09191599]
[1757489396433,0.68884103,112420.0,112410.0,0.09191599]
[1757489396638,0.17792472,112410.0,112390.0,0.33712935]
[1757489396846,0.3832786,112410.0,112400.0,0.09191599]
[1757489397053,0.3853386,112410.0,112400.0,0.09191599]
[1757489397252,0.18322472,112410.0,112400.0,0.09191599]
[1757489397468,0.0053,112410.0,112400.0,0.26985193]
[1757489397880,0.0053,112410.0,112400.0,0.09191599]
[1757489398081,0.0053,112410.0,112400.0,0.26985193]
[1757489400153,0.0053,112410.0,112400.0,0.42013193]
[1757489400376,0.0053,112410.0,112400.0,0.09191599]
[1757489400377,0.38857399,112410.0,112400.0,0.09191599]
[1757489400536,0.17793927,112400.0,112380.0,0.33714598]
[1757489400726,0.33117927,112400.0,112390.0,0.09191599]
[1757489400940,0.47825927,112400.0,112390.0,0.09191599]
[1757489401155,0.53535315,112400.0,112390.0,0.09191599]
[1757489401369,0.48031927,112400.0,112390.0,0.09191599]
[1757489401578,0.1553,112400.0,112390.0,0.26986776]
[1757489402036,0.1553,112400.0,112390.0,0.62751164]
[1757489402037,0.00206,112400.0,112390.0,0.62751164]
[1757489402239,0.15830064,112420.0,112410.0,0.17792011]
[1757489402395,0.30562,112420.0,112410.0,0.2698361]
[1757489402768,0.00206,112420.0,112410.0,0.62751998]
[1757489403388,0.00206,112420.0,112410.0,0.4201561]
[1757489403594,0.0053,112420.0,112410.0,0.62550998]
[1757489403809,0.00206,112420.0,112410.0,0.62751998]
[1757489404280,0.10452065,112430.0,112420.0,0.17790428]
[1757489404480,0.10128065,112430.0,112420.0,0.47739795]
[1757489404694,0.10334065,112430.0,112420.0,0.47718415]
[1757489404913,0.10128065,112430.0,112420.0,0.50192415]
[1757489405130,0.10128065,112430.0,112420.0,0.87028073]
[1757489405587,0.10128065,112430.0,112420.0,0.8707417]
[1757489408702,0.10128065,112430.0,112420.0,1.2707417]
[1757489409745,0.10128065,112430.0,112420.0,1.27974675]
[1757489411394,0.10128065,112430.0,112420.0,1.43010675]
[1757489411780,0.10128065,112430.0,112420.0,1.22475287]
[1757489411977,0.10128065,112430.0,112420.0,1.43010675]
[1757489413870,0.10128065,112430.0,112420.0,1.43006675]
[1757489415262,0.10128065,112430.0,112420.0,1.27974675]
[1757489415418,0.10128065,112430.0,112420.0,1.43006675]
[1757489416965,0.10128065,112430.0,112420.0,1.27974675]
[1757489417173,0.10128065,112430.0,112420.0,1.43002675]
[1757489417743,0.10128065,112430.0,112420.0,1.43006675]
[1757489419437,0.10128065,112430.0,112420.0,1.43002675]
[1757489419921,0.10128065,112430.0,112420.0,1.49379416]
[1757489421104,0.10128065,112430.0,112420.0,1.34355416]
[1757489421302,0.10128065,112430.0,112420.0,1.49383416]
[1757489422314,0.10128065,112430.0,112420.0,1.49379416]
[1757489422982,0.10128065,112430.0,112420.0,1.49375416]
[1757489423200,0.10128065,112430.0,112420.0,1.34355416]
[1757489423534,0.10128065,112430.0,112420.0,1.49379416]
[1757489424260,0.10128065,112430.0,112420.0,1.34355416]
[1757489424462,0.10128065,112430.0,112420.0,1.36669121]
[1757489424639,0.10128065,112430.0,112420.0,1.49375416]
[1757489425503,0.10128065,112430.0,112420.0,1.34355416]
[1757489425725,0.10128065,112430.0,112420.0,1.13820028]
[1757489425934,0.10128065,112430.0,112420.0,1.27974675]
[1757489426144,0.10128065,112430.0,112420.0,1.42990675]
[1757489426402,0.10128065,112430.0,112420.0,1.49371416]
[1757489426977,0.10128065,112430.0,112420.0,1.34355416]
[1757489427194,0.10128065,112430.0,112420.0,1.49371416]
[1757489427401,0.10128065,112430.0,112420.0,1.13820028]
[1757489427599,0.10637065,112430.0,112420.0,1.37691017]
[1757489427758,0.10334065,112430.0,112420.0,1.21774512]
[1757489427960,0.10637065,112430.0,112420.0,0.63540782]
[1757489428168,0.10637065,112430.0,112420.0,0.9909217]
[1757489428492,0.10637065,112430.0,112420.0,0.78556782]
[1757489428709,0.10637065,112430.0,112420.0,0.9909217]
[1757489429280,0.10637065,112430.0,112420.0,0.63540782]
[1757489429481,0.10637065,112430.0,112420.0,0.76044124]
[1757489429681,0.10637065,112430.0,112420.0,0.61028124]
[1757489429896,0.48961299,112430.0,112420.0,0.09237696]
[1757489430113,0.10637065,112430.0,112420.0,0.42048124]
[1757489433002,0.10128065,112430.0,112420.0,0.6562717]
[1757489433419,0.10128065,112430.0,112420.0,0.6790617]
[1757489433833,0.10334065,112430.0,112420.0,0.6758617]
[1757489434239,0.10334065,112430.0,112420.0,0.6530717]
[1757489434470,0.10334065,112430.0,112420.0,0.58140704]
[1757489434824,0.10334065,112430.0,112420.0,0.44771782]
[1757489435028,0.10637065,112430.0,112420.0,0.58140704]
[1757489435243,0.10334065,112430.0,112420.0,0.58140704]
[1757489435610,0.10334065,112430.0,112420.0,0.44771782]
[1757489435810,0.10637065,112430.0,112420.0,0.57929704]
[1757489436275,0.10637065,112430.0,112420.0,0.57925704]
[1757489436690,0.10128065,112430.0,112420.0,0.58136704]
[1757489436931,0.10128065,112430.0,112420.0,0.60735704]
[1757489437146,0.10128065,112430.0,112420.0,0.67116445]
[1757489437351,0.10128065,112430.0,112420.0,0.6943015]
[1757489437554,0.10128065,112430.0,112420.0,0.67116445]
[1757489439206,0.10128065,112430.0,112420.0,0.53427523]
[1757489439207,0.10334065,112430.0,112420.0,0.53427523]
[1757489439396,0.10128065,112430.0,112420.0,1.07116445]
[1757489439622,0.10128065,112430.0,112420.0,0.93747523]
[1757489439821,0.10128065,112430.0,112420.0,1.07116445]
[1757489441616,0.10332065,112430.0,112420.0,0.93427523]
[1757489441838,0.10629065,112430.0,112420.0,0.33408865]
[1757489442027,0.10629065,112430.0,112420.0,0.42040124]
[1757489443785,0.10629065,112430.0,112420.0,0.42044124]
[1757489444195,0.35600449,112430.0,112420.0,0.09237696]
[1757489444405,0.48969371,112430.0,112420.0,0.09237696]
[1757489444648,0.41786833,112430.0,112420.0,0.09237696]
[1757489445234,0.28417911,112430.0,112420.0,0.09237696]
[1757489445446,0.28417911,112430.0,112420.0,0.00046097]
[1757489445647,0.41786833,112430.0,112420.0,0.00046097]
[1757489445852,0.61786833,112430.0,112420.0,0.00046097]
[1757489446053,0.70978432,112430.0,112420.0,0.00046097]
[1757489446284,1.24978432,112430.0,112420.0,0.00046097]
[1757489446488,1.27228215,112430.0,112420.0,0.00046097]
[1757489446664,1.24978432,112430.0,112420.0,0.00046097]
[1757489448785,1.39998432,112430.0,112420.0,0.00046097]
[1757489449406,1.62558953,112430.0,112420.0,0.00046097]
[1757489449656,1.64808736,112430.0,112420.0,0.00046097]
[1757489449869,1.93744953,112430.0,112420.0,0.00046097]
[1757489450082,1.31987109,112430.0,112420.0,0.00046097]
[1757489450294,1.60380031,112430.0,112420.0,0.00046097]
[1757489450702,1.63054551,112430.0,112420.0,0.00046097]
[1757489451995,1.53866952,112430.0,112420.0,0.00046097]
[1757489453021,1.56338687,112430.0,112420.0,0.00046097]
[1757489453226,1.10814833,112430.0,112420.0,0.00046097]
[1757489454509,1.20006432,112430.0,112420.0,0.00046097]
[1757489454754,1.22478167,112430.0,112420.0,0.00046097]
[1757489455160,1.03272844,112430.0,112420.0,0.00046097]
[1757489455372,0.64591427,112430.0,112420.0,0.00260097]
[1757489455560,0.43340911,112430.0,112420.0,0.00260097]
[1757489455990,0.43637911,112430.0,112420.0,0.00046097]
[1757489456150,0.57006833,112430.0,112420.0,0.00046097]
[1757489457433,0.91006833,112430.0,112420.0,0.00046097]
[1757489458358,0.91190833,112430.0,112420.0,0.00046097]
[1757489460460,0.93662568,112430.0,112420.0,0.00046097]
[1757489460645,0.91190833,112430.0,112420.0,0.00046097]
[1757489461049,0.91178833,112430.0,112420.0,0.00046097]
[1757489461253,1.00370432,112430.0,112420.0,0.00046097]
[1757489462162,1.02842167,112430.0,112420.0,0.00046097]
[1757489463321,0.15,112390.0,112370.0,0.09674212]
[1757489463521,0.15,112390.0,112370.0,0.09720335]
[1757489463522,0.1779676,112380.0,112370.0,0.09720335]
[1757489463758,0.31165682,112380.0,112370.0,0.36924278]
[1757489464171,0.1779676,112380.0,112370.0,0.36924278]
[1757489464518,0.1779676,112380.0,112370.0,0.19125934]
[1757489464724,0.1779676,112380.0,112370.0,0.12064722]
[1757489465183,0.31165682,112380.0,112370.0,0.12064722]
[1757489465390,0.1779676,112380.0,112370.0,0.12064722]
[1757489465600,0.31165682,112380.0,112370.0,0.12064722]
[1757489465839,0.5297009,112380.0,112370.0,0.00046123]
[1757489466084,0.55690774,112380.0,112370.0,0.00046123]
[1757489466297,0.46745682,112380.0,112370.0,0.00260123]
[1757489467019,0.3337676,112380.0,112370.0,0.00260123]
[1757489467238,0.46745682,112380.0,112370.0,0.00260123]
[1757489467503,1.01251604,112380.0,112370.0,0.00046123]
[1757489467741,1.05545582,112380.0,112370.0,0.00046123]
[1757489467954,1.02824898,112380.0,112370.0,0.00046123]
[1757489468401,0.76087054,112380.0,112370.0,0.00046123]
[1757489468638,1.05545582,112380.0,112370.0,0.00046123]
[1757489470672,0.63435738,112380.0,112370.0,0.00046123]
[1757489470889,0.92209682,112380.0,112370.0,0.00260123]
[1757489471112,0.92209682,112380.0,112370.0,0.00046123]
[1757489471113,1.07885682,112380.0,112370.0,0.00046123]
[1757489471309,1.21254604,112380.0,112370.0,0.00046123]
[1757489473649,1.23986327,112380.0,112370.0,0.00046123]
[1757489473866,1.17797926,112380.0,112370.0,0.00046123]
[1757489474101,0.4000876,112380.0,112370.0,0.02961123]
[1757489474326,0.3316876,112380.0,112370.0,0.02961123]
[1757489474547,0.46537682,112380.0,112370.0,0.02961123]
[1757489474768,0.1779676,112380.0,112370.0,0.02961123]
[1757489475002,0.1779676,112380.0,112370.0,0.20759467]
[1757489475491,0.26192846,112380.0,112370.0,0.20759467]
[1757489475800,0.48167177,112390.0,112370.0,0.43319988]
[1757489476027,0.48167177,112390.0,112380.0,0.11588599]
[1757489476228,0.48167177,112390.0,112380.0,0.11801599]
[1757489476443,0.48364177,112390.0,112380.0,0.11588599]
[1757489476642,0.48167177,112390.0,112380.0,0.12106599]
[1757489477314,0.66365777,112390.0,112380.0,0.11801599]
[1757489477491,0.66562777,112390.0,112380.0,0.09404599]
[1757489478114,0.52996855,112390.0,112380.0,0.12106599]
[1757489478890,0.66562777,112390.0,112380.0,0.11801599]
[1757489479356,0.66562777,112390.0,112380.0,0.09404599]
[1757489479559,0.1779676,112380.0,112370.0,0.00046123]
[1757489479770,0.38294344,112380.0,112370.0,0.00046123]
[1757489479954,0.25122422,112380.0,112370.0,0.00259123]
[1757489480099,0.25122422,112380.0,112370.0,0.02656123]
[1757489480326,0.24925422,112380.0,112370.0,0.02656123]
[1757489481566,0.24925422,112380.0,112370.0,0.02961123]
[1757489481793,0.52996855,112390.0,112370.0,0.29951066]
[1757489482008,0.52996855,112390.0,112380.0,0.02397]
[1757489482240,0.66562777,112390.0,112380.0,0.00213]
[1757489482725,0.61733099,112390.0,112380.0,0.00213]
[1757489483164,0.61733099,112390.0,112370.0,0.09542722]
[1757489483165,0.1779676,112380.0,112370.0,0.09237722]
[1757489483614,0.1799376,112380.0,112370.0,0.09450722]
[1757489484057,0.1779676,112380.0,112370.0,0.12152722]
[1757489484518,0.48167177,112390.0,112370.0,0.29951066]
[1757489484952,0.54601673,112390.0,112380.0,0.02702]
[1757489485187,0.48211177,112390.0,112380.0,0.02915]
[1757489487177,0.61777099,112390.0,112380.0,0.00213]
[1757489487354,0.1779676,112380.0,112370.0,0.09237722]
[1757489487762,0.31362682,112380.0,112370.0,0.09450722]
[1757489487962,0.31658682,112380.0,112370.0,0.09237722]
[1757489488161,0.39645668,112380.0,112370.0,0.09237722]
[1757489489466,0.26276746,112380.0,112370.0,0.09237722]
[1757489490103,0.1828976,112380.0,112370.0,0.09237722]
[1757489490326,0.31658682,112380.0,112370.0,0.09237722]
[1757489490734,0.1828976,112380.0,112370.0,0.09237722]
[1757489490976,0.31658682,112380.0,112370.0,0.09237722]
[1757489491140,0.31362682,112380.0,112370.0,0.09450722]
[1757489491317,0.31658682,112380.0,112370.0,0.09237722]
[1757489491706,0.1828976,112380.0,112370.0,0.09237722]
[1757489492324,0.20752808,112380.0,112370.0,0.09237722]
[1757489492523,0.3412173,112380.0,112370.0,0.09237722]
[1757489493722,0.20752808,112380.0,112370.0,0.09237722]
[1757489494145,0.31658682,112380.0,112370.0,0.09237722]
[1757489495212,0.31658682,112380.0,112370.0,0.00046123]
[1757489495467,0.65658682,112380.0,112370.0,0.00046123]
[1757489496314,0.5228976,112380.0,112370.0,0.00046123]
[1757489496522,0.72860228,112380.0,112370.0,0.00046123]
[1757489496736,0.8478355,112380.0,112370.0,0.00046123]
[1757489497982,0.85617373,112380.0,112370.0,0.00046123]
[1757489500165,0.8478355,112380.0,112370.0,0.00046123]
[1757489500360,0.82051827,112380.0,112370.0,0.00046123]
[1757489500784,0.8478355,112380.0,112370.0,0.00046123]
[1757489503104,0.64213082,112380.0,112370.0,0.00046123]
[1757489503304,0.8478355,112380.0,112370.0,0.00046123]
[1757489504511,0.35470697,112390.0,112370.0,0.03034123]
[1757489504727,0.6712476,112380.0,112370.0,0.03034123]
[1757489505289,0.52795308,112390.0,112370.0,0.30023608]
[1757489505488,0.68127308,112390.0,112380.0,0.02495]
[1757489505721,1.31889375,112390.0,112380.0,0.02988]
[1757489505931,0.78191599,112390.0,112380.0,0.2078476]
[1757489506140,0.30336,112390.0,112380.0,0.29976359]
[1757489506351,0.82131177,112390.0,112380.0,0.29976359]
[1757489507585,0.82131177,112390.0,112380.0,0.12179599]
[1757489507749,0.82131177,112390.0,112380.0,0.29976359]
[1757489508201,0.82131177,112390.0,112380.0,0.12179599]
[1757489508615,0.82327177,112390.0,112380.0,0.11885599]
[1757489508822,1.03213645,112390.0,112380.0,0.09390599]
[1757489509626,0.1779676,112380.0,112370.0,0.00046123]
[1757489509876,0.38367228,112380.0,112370.0,0.09237722]
[1757489510070,0.91834776,112390.0,112370.0,0.09237722]
[1757489510071,1.12209244,112390.0,112370.0,0.09730722]
[1757489510246,1.11893244,112390.0,112370.0,0.30024056]
[1757489510651,0.1779676,112380.0,112370.0,0.12225722]
[1757489511198,0.38563228,112380.0,112370.0,0.11931722]
[1757489511447,0.1799276,112380.0,112370.0,0.11931722]
[1757489511795,0.1799276,112380.0,112370.0,0.09237722]
[1757489511995,0.1830876,112380.0,112370.0,0.09237722]
[1757489512201,0.38879228,112380.0,112370.0,0.09436722]
[1757489512414,0.48070827,112380.0,112370.0,0.00046123]
[1757489512864,0.47754827,112380.0,112370.0,0.00245123]
[1757489513066,0.38563228,112380.0,112370.0,0.02740123]
[1757489514459,0.38563228,112380.0,112370.0,0.00245123]
[1757489514882,0.38879228,112380.0,112370.0,0.00046123]
[1757489515702,0.38563228,112380.0,112370.0,0.00245123]
[1757489515935,0.53859228,112380.0,112370.0,0.00245123]
[1757489516750,0.3309676,112380.0,112370.0,0.03034123]
[1757489517890,0.3329276,112380.0,112370.0,0.03034123]
[1757489518277,0.3309676,112380.0,112370.0,0.02740123]
[1757489518502,0.3309676,112380.0,112370.0,0.03034123]
[1757489518648,0.3329276,112380.0,112370.0,0.03034123]
[1757489518864,0.01395436,112410.0,112400.0,0.17793594]
[1757489519195,0.43806353,112430.0,112420.0,0.17790428]
[1757489519196,0.10128065,112430.0,112420.0,0.17790428]
[1757489519384,0.10128065,112430.0,112420.0,0.50540495]